fUSD/lending_fUSD_20260606
["ID","MTS","AMOUNT","RATE_DAILY","PERIOD"]
[424246516,1780704644000,-1619.63,0.00013698,2]
[424246512,1780704644000,-500.0,0.00013698,2]
[424246528,1780704644000,-151.0,0.00013699,2]
[424246596,1780704645000,-487.0,0.00013699,2]
[424246595,1780704645000,-487.0,0.00013699,2]
[424246597,1780704645000,-487.0,0.00013699,2]
[424246593,1780704645000,-386.0,0.00013699,2]
[424246586,1780704645000,-487.0,0.00013699,2]
[424246590,1780704645000,-487.0,0.00013699,2]
[424246592,1780704645000,-487.0,0.00013699,2]
[424246585,1780704645000,-487.0,0.00013699,2]
[424246591,1780704645000,-487.0,0.00013699,2]
[424246583,1780704645000,-487.0,0.00013699,2]
[424246600,1780704645000,-184.0,0.00013699,2]
[424246587,1780704645000,-487.0,0.00013699,2]
[424246598,1780704645000,-487.0,0.00013699,2]
[424246610,1780704645000,-191.0,0.00013699,2]
[424246604,1780704645000,-487.0,0.00013699,2]
[424246601,1780704645000,-487.0,0.00013699,2]
[424246602,1780704645000,-487.0,0.00013699,2]
[424246599,1780704645000,-386.0,0.00013699,2]
[424246603,1780704645000,-487.0,0.00013699,2]
[424246605,1780704645000,-487.0,0.00013699,2]
[424246606,1780704645000,-487.0,0.00013699,2]
[424246607,1780704645000,-487.0,0.00013699,2]
[424246608,1780704645000,-487.0,0.00013699,2]
[424246609,1780704645000,-379.0,0.00013699,2]
[424246615,1780704645000,-184.0,0.00013699,2]
[424246612,1780704645000,-487.0,0.00013699,2]
[424246584,1780704645000,-487.0,0.00013699,2]
[424246594,1780704645000,-184.0,0.00013699,2]
[424246589,1780704645000,-487.0,0.00013699,2]
[424246556,1780704645000,-487.0,0.00013699,2]
[424246582,1780704645000,-487.0,0.00013699,2]
[424246614,1780704645000,-386.0,0.00013699,2]
[424246554,1780704645000,-487.0,0.00013699,2]
[424246557,1780704645000,-487.0,0.00013699,2]
[424246562,1780704645000,-487.0,0.00013699,2]
[424246555,1780704645000,-487.0,0.00013699,2]
[424246563,1780704645000,-487.0,0.00013699,2]
[424246564,1780704645000,-487.0,0.00013699,2]
[424246565,1780704645000,-487.0,0.00013699,2]
[424246561,1780704645000,-487.0,0.00013699,2]
[424246560,1780704645000,-487.0,0.00013699,2]
[424246566,1780704645000,-487.0,0.00013699,2]
[424246559,1780704645000,-487.0,0.00013699,2]
[424246568,1780704645000,-487.0,0.00013699,2]
[424246577,1780704645000,-487.0,0.00013699,2]
[424246567,1780704645000,-487.0,0.00013699,2]
[424246569,1780704645000,-487.0,0.00013699,2]
[424246579,1780704645000,-487.0,0.00013699,2]
[424246576,1780704645000,-487.0,0.00013699,2]
[424246578,1780704645000,-487.0,0.00013699,2]
[424246580,1780704645000,-487.0,0.00013699,2]
[424246570,1780704645000,-487.0,0.00013699,2]
[424246572,1780704645000,-487.0,0.00013699,2]
[424246571,1780704645000,-487.0,0.00013699,2]
[424246575,1780704645000,-487.0,0.00013699,2]
[424246573,1780704645000,-487.0,0.00013699,2]
[424246574,1780704645000,-487.0,0.00013699,2]
[424246581,1780704645000,-487.0,0.00013699,2]
[424246588,1780704645000,-487.0,0.00013699,2]
[424246611,1780704645000,-487.0,0.00013699,2]
[424246558,1780704645000,-487.0,0.00013699,2]
[424246628,1780704645000,-188.0,0.00013699,2]
[424246650,1780704645000,-500.0,0.00013699,2]
[424246645,1780704645000,-500.0,0.00013699,2]
[424246647,1780704645000,-500.0,0.00013699,2]
[424246651,1780704645000,-500.0,0.00013699,2]
[424246652,1780704645000,-500.0,0.00013699,2]
[424246655,1780704645000,-500.0,0.00013699,2]
[424246657,1780704645000,-500.0,0.00013699,2]
[424246659,1780704645000,-150.0,0.00013702,2]
[424246658,1780704645000,-1548.0,0.000137,2]
[424246660,1780704645000,-150.0,0.00013737,2]
[424246664,1780704645000,-1557.02,0.00013817,2]
[424246663,1780704645000,-151.0,0.00013786,2]
[424246661,1780704645000,-150.0,0.0001376,2]
[424246656,1780704645000,-482.72385787,0.00013699,2]
[424246662,1780704645000,-150.0,0.0001376,2]
[424246665,1780704645000,-150.0,0.00013821,2]
[424246667,1780704645000,-166.66,0.00013836,2]
[424246666,1780704645000,-150.0,0.00013828,2]
[424246670,1780704645000,-150.0,0.00013896,2]
[424246669,1780704645000,-150.0,0.00013862,2]
[424246674,1780704645000,-150.0,0.00013916,2]
[424246668,1780704645000,-150.0,0.00013862,2]
[424246672,1780704645000,-169.62,0.00013914,2]
[424246673,1780704645000,-169.62,0.00013914,2]
[424246675,1780704645000,-150.0,0.00013965,2]
[424246676,1780704645000,-152.0,0.0001397,2]
[424246613,1780704645000,-420.78640974,0.00013699,2]
[424246644,1780704645000,-500.0,0.00013699,2]
[424246649,1780704645000,-500.0,0.00013699,2]
[424246671,1780704645000,-150.0,0.00013896,2]
[424246642,1780704645000,-500.0,0.00013699,2]
[424246623,1780704645000,-383.0,0.00013699,2]
[424246625,1780704645000,-377.0,0.00013699,2]
[424246618,1780704645000,-384.0,0.00013699,2]
[424246617,1780704645000,-191.0,0.00013699,2]
[424246616,1780704645000,-379.0,0.00013699,2]
[424246620,1780704645000,-186.0,0.00013699,2]
[424246627,1780704645000,-382.0,0.00013699,2]
[424246626,1780704645000,-193.0,0.00013699,2]
[424246648,1780704645000,-500.0,0.00013699,2]
[424246621,1780704645000,-378.0,0.00013699,2]
[424246622,1780704645000,-192.0,0.00013699,2]
[424246629,1780704645000,-212.96328853,0.00013699,2]
[424246632,1780704645000,-500.0,0.00013699,2]
[424246631,1780704645000,-500.0,0.00013699,2]
[424246624,1780704645000,-187.0,0.00013699,2]
[424246630,1780704645000,-500.0,0.00013699,2]
[424246646,1780704645000,-500.0,0.00013699,2]
[424246640,1780704645000,-500.0,0.00013699,2]
[424246653,1780704645000,-500.0,0.00013699,2]
[424246654,1780704645000,-500.0,0.00013699,2]
[424246636,1780704645000,-389.46873306,0.00013699,2]
[424246638,1780704645000,-500.0,0.00013699,2]
[424246643,1780704645000,-500.0,0.00013699,2]
[424246639,1780704645000,-500.0,0.00013699,2]
[424246635,1780704645000,-500.0,0.00013699,2]
[424246641,1780704645000,-500.0,0.00013699,2]
[424246633,1780704645000,-500.0,0.00013699,2]
[424246634,1780704645000,-500.0,0.00013699,2]
[424246637,1780704645000,-500.0,0.00013699,2]
[424246728,1780704646000,-150.0,0.00014237,2]
[424246720,1780704646000,-150.0,0.00014154,2]
[424246721,1780704646000,-1030.0,0.00014159,2]
[424246718,1780704646000,-150.0,0.00014112,2]
[424246719,1780704646000,-150.0,0.0001413,2]
[424246714,1780704646000,-150.0,0.0001405,2]
[424246710,1780704646000,-150.0,0.00014033,2]
[424246712,1780704646000,-150.0,0.00014033,2]
[424246709,1780704646000,-2000.0,0.00014,2]
[424246704,1780704646000,-3211.0,0.00014,2]
[424246717,1780704646000,-166.66,0.0001411,2]
[424246726,1780704646000,-150.0,0.00014237,2]
[424246735,1780704646000,-150.0,0.00014344,2]
[424246724,1780704646000,-150.0,0.00014169,2]
[424246723,1780704646000,-150.0,0.00014169,2]
[424246727,1780704646000,-150.0,0.00014237,2]
[424246725,1780704646000,-745.08313973,0.00014194,2]
[424246730,1780704646000,-1252.0,0.00014277,2]
[424246729,1780704646000,-166.66,0.00014247,2]
[424246731,1780704646000,-376.0,0.00014291,2]
[424246740,1780704646000,-166.66,0.00014384,2]
[424246741,1780704646000,-309.0,0.000144,2]
[424246732,1780704646000,-150.0,0.00014305,2]
[424246733,1780704646000,-150.0,0.00014305,2]
[424246734,1780704646000,-150.0,0.0001432,2]
[424246715,1780704646000,-150.0,0.00014101,2]
[424246722,1780704646000,-1500.0,0.00014159,2]
[424246706,1780704646000,-534.3,0.00014,2]
[424246700,1780704646000,-472.7,0.00014,2]
[424246703,1780704646000,-2000.0,0.00014,2]
[424246736,1780704646000,-393.89136913,0.00014356,2]
[424246677,1780704646000,-152.0,0.0001397,2]
[424246678,1780704646000,-152.0,0.0001397,2]
[424246679,1780704646000,-166.66,0.00013973,2]
[424246681,1780704646000,-150.0,0.00013987,2]
[424246680,1780704646000,-150.0,0.00013987,2]
[424246682,1780704646000,-814.995,0.0001399,2]
[424246684,1780704646000,-2000.0,0.00014,2]
[424246686,1780704646000,-2000.0,0.00014,2]
[424246689,1780704646000,-2000.0,0.00014,2]
[424246688,1780704646000,-2000.0,0.00014,2]
[424246687,1780704646000,-2000.0,0.00014,2]
[424246683,1780704646000,-333.67,0.00014,2]
[424246685,1780704646000,-2000.0,0.00014,2]
[424246691,1780704646000,-829.95,0.00014,2]
[424246701,1780704646000,-283.63,0.00014,2]
[424246690,1780704646000,-2000.0,0.00014,2]
[424246702,1780704646000,-2000.0,0.00014,2]
[424246699,1780704646000,-1134.49,0.00014,2]
[424246698,1780704646000,-250.0,0.00014,2]
[424246695,1780704646000,-179.15,0.00014,2]
[424246696,1780704646000,-2000.0,0.00014,2]
[424246694,1780704646000,-2000.0,0.00014,2]
[424246697,1780704646000,-1707.49,0.00014,2]
[424246693,1780704646000,-2000.0,0.00014,2]
[424246705,1780704646000,-1282.34,0.00014,2]
[424246707,1780704646000,-320.58,0.00014,2]
[424246708,1780704646000,-2000.0,0.00014,2]
[424246737,1780704646000,-150.0,0.00014362,2]
[424246692,1780704646000,-2000.0,0.00014,2]
[424246743,1780704646000,-315.0,0.000144,2]
[424246780,1780704646000,-150.0,0.00014737,2]
[424246771,1780704646000,-150.0,0.00014653,2]
[424246772,1780704646000,-1000.0,0.0001467,2]
[424246773,1780704646000,-500.0,0.0001467,2]
[424246776,1780704646000,-1068.11,0.00014707,2]
[424246774,1780704646000,-494.78966585,0.00014699,2]
[424246797,1780704646000,-195.72,0.000148,2]
[424246775,1780704646000,-286.0,0.00014705,2]
[424246782,1780704646000,-1000.0,0.0001477,2]
[424246791,1780704646000,-1371.0,0.00014795,2]
[424246792,1780704646000,-150.0,0.00014799,2]
[424246781,1780704646000,-418.0,0.00014763,2]
[424246769,1780704646000,-418.0,0.00014643,2]
[424246785,1780704646000,-500.0,0.0001477,2]
[424246783,1780704646000,-1000.0,0.0001477,2]
[424246790,1780704646000,-150.0,0.00014782,2]
[424246786,1780704646000,-500.0,0.0001477,2]
[424246789,1780704646000,-2000.0,0.00014781,2]
[424246788,1780704646000,-150.0,0.00014772,2]
[424246794,1780704646000,-175.56,0.000148,2]
[424246793,1780704646000,-500.0,0.00014799,16]
[424246799,1780704646000,-195.76,0.000148,2]
[424246795,1780704646000,-195.72,0.000148,2]
[424246800,1780704646000,-244.7,0.000148,2]
[424246796,1780704646000,-195.72,0.000148,2]
[424246798,1780704646000,-195.72,0.000148,2]
[424246784,1780704646000,-1000.0,0.0001477,2]
[424246778,1780704646000,-150.0,0.00014714,2]
[424246787,1780704646000,-500.0,0.0001477,2]
[424246777,1780704646000,-1555.5,0.00014707,2]
[424246779,1780704646000,-150.0,0.00014714,2]
[424246753,1780704646000,-1619.63,0.00014504,2]
[424246754,1780704646000,-150.0,0.00014509,2]
[424246742,1780704646000,-1000.0,0.000144,2]
[424246755,1780704646000,-400.0,0.00014521,10]
[424246744,1780704646000,-10000.0,0.00014406,2]
[424246749,1780704646000,-150.0,0.00014487,2]
[424246745,1780704646000,-150.0,0.00014424,2]
[424246748,1780704646000,-191.59919878,0.00014442,2]
[424246747,1780704646000,-150.0,0.00014441,2]
[424246746,1780704646000,-150.0,0.00014441,2]
[424246750,1780704646000,-150.0,0.00014487,2]
[424246751,1780704646000,-151.0,0.00014501,2]
[424246752,1780704646000,-151.0,0.00014501,2]
[424246739,1780704646000,-150.0,0.00014373,2]
[424246758,1780704646000,-376.0,0.00014553,2]
[424246756,1780704646000,-376.0,0.00014529,2]
[424246768,1780704646000,-150.0,0.00014612,2]
[424246765,1780704646000,-150.0,0.00014578,2]
[424246767,1780704646000,-150.0,0.00014612,2]
[424246770,1780704646000,-150.0,0.00014646,2]
[424246766,1780704646000,-418.0,0.00014589,2]
[424246764,1780704646000,-150.0,0.00014578,2]
[424246757,1780704646000,-418.0,0.00014535,2]
[424246762,1780704646000,-700.27635191,0.0001457,2]
[424246761,1780704646000,-1000.0,0.0001457,2]
[424246760,1780704646000,-418.0,0.00014565,2]
[424246759,1780704646000,-150.0,0.00014558,2]
[424246763,1780704646000,-1000.0,0.0001457,2]
[424246813,1780704647000,-150.0,0.0001485,2]
[424246814,1780704647000,-500.0,0.00014855,17]
[424246811,1780704647000,-25000.0,0.00014847,3]
[424246806,1780704647000,-150.0,0.0001482,2]
[424246807,1780704647000,-25000.0,0.00014821,3]
[424246808,1780704647000,-186.09789336,0.00014827,2]
[424246803,1780704647000,-928.57,0.000148,2]
[424246810,1780704647000,-25000.0,0.00014838,3]
[424246809,1780704647000,-25000.0,0.0001483,3]
[424246801,1780704647000,-928.57,0.000148,2]
[424246802,1780704647000,-928.57,0.000148,2]
[424246804,1780704647000,-928.57,0.000148,2]
[424246805,1780704647000,-928.57,0.000148,2]
[424246815,1780704647000,-25000.0,0.00014856,3]
[424246812,1780704647000,-150.0,0.0001485,2]
[424246817,1780704647000,-25000.0,0.00014865,3]
[424246816,1780704647000,-150.0,0.00014861,2]
[424246829,1780704647000,-25000.0,0.000149,3]
[424246823,1780704647000,-25000.0,0.00014882,3]
[424246825,1780704647000,-25000.0,0.00014891,3]
[424246826,1780704647000,-457.20795833,0.00014899,19]
[424246824,1780704647000,-1619.63,0.0001489,2]
[424246827,1780704647000,-25000.0,0.000149,3]
[424246821,1780704647000,-25000.0,0.00014874,3]
[424246820,1780704647000,-500.0,0.0001487,2]
[424246822,1780704647000,-500.0,0.00014882,18]
[424246828,1780704647000,-25000.0,0.000149,3]
[424246819,1780704647000,-1000.0,0.0001487,2]
[424246818,1780704647000,-155.04172336,0.00014869,2]
[424246860,1780704648000,-941.28122303,0.0001127,2]
[424246863,1780704648000,-2312.13930606,0.00015,2]
[424246864,1780704648000,-390.55936596,0.00015,2]
[424246865,1780704648000,-151.0,0.00012191,2]
[424246866,1780704648000,-928.88131655,0.00015,2]
[424246861,1780704648000,-1217.88995462,0.0001127,2]
[424246867,1780704648000,-952.23947126,0.00015,2]
[424246862,1780704648000,-181.269916,0.00013481,2]
[424246870,1780704649000,-3164.90000007,0.00011099,2]
[424246869,1780704649000,-3764.72311705,0.00011099,2]
[424246868,1780704649000,-587.45969618,0.00011099,2]
[424246871,1780704651000,152.0,0.00028598,120]
[424246872,1780704667000,900.0,0.000108,3]
[424246873,1780704670000,1900.0,0.000109,3]
[424246874,1780704678000,500.0,0.00010958,3]
[424246876,1780704679000,457.20795833,0.00010958,5]
[424246875,1780704679000,500.0,0.00010958,4]
[424246877,1780704705000,199.19886557,0.00010663,3]
[424246878,1780704709000,1024.96605996,0.00010663,3]
[424246881,1780704864000,291.01057738,0.00024677,120]
[424246880,1780704864000,198.40645161,0.00024677,120]
[424246882,1780704883000,10000.0,0.00030137,120]
[424246895,1780704979000,1024.96605997,0.00010663,3]
[424246897,1780704987000,630.17,0.00030082,120]
[424246899,1780704994000,1024.96605997,0.00010663,3]
[424246902,1780705005000,1024.96605997,0.00010663,3]
[424246904,1780705012000,250.0,0.00030137,120]
[424246909,1780705102000,4592.0,0.00030137,120]
[424246914,1780705245000,500.0,0.00010958,5]
[424246913,1780705245000,500.0,0.00010958,4]
[424246912,1780705245000,500.0,0.00010958,3]
[424246915,1780705246000,500.0,0.00010958,6]
[424246918,1780705247000,500.0,0.00010959,9]
[424246917,1780705247000,500.0,0.00010959,8]
[424246916,1780705247000,500.0,0.00010958,7]
[424246919,1780705248000,500.0,0.00010959,10]
[424246930,1780705631000,800.0,0.000105,3]
[424246932,1780705633000,1600.0,0.000106,3]
[424246933,1780705635000,2500.0,0.000107,3]
[424246934,1780705637000,3300.0,0.000108,3]
[424246935,1780705639000,1102.03636957,0.000109,3]
[424246936,1780705741000,2000.0,0.00030136,120]
[424246938,1780705757000,-3997.57219002,9.59e-05,2]
[424246939,1780705757000,-776.79780998,9.59e-05,2]
[424246940,1780705757000,-194.09368115,9.689e-05,2]
[424246941,1780705757000,-154.69564726,9.737e-05,2]
[424246944,1780705757000,-529.84017533,9.737e-05,2]
[424246942,1780705757000,-578.12049946,9.737e-05,2]
[424246945,1780705757000,-255.61180634,9.737e-05,2]
[424246946,1780705757000,-500.0,9.737e-05,2]
[424246947,1780705757000,-500.0,9.737e-05,2]
[424246948,1780705757000,-8.4125705,9.737e-05,2]
[424246949,1780705757000,-491.5874295,9.737e-05,2]
[424246950,1780705757000,-226.40979234,9.737e-05,2]
[424246943,1780705757000,-500.0,9.737e-05,2]
[424246952,1780705758000,156.37725924,0.00010357,7]
[424246951,1780705758000,150.0,0.00010357,7]
[424246953,1780705762000,500.0,9.613e-05,3]
[424246957,1780705782000,-1000.0,9.623e-05,2]
[424246958,1780705782000,-273.59020766,9.737e-05,2]
[424246959,1780705782000,-500.0,9.737e-05,2]
[424246960,1780705782000,-291.20181437,9.737e-05,2]
[424246963,1780705782000,-500.0,9.737e-05,2]
[424246961,1780705782000,-500.0,9.737e-05,2]
[424246965,1780705782000,-4171.83502206,9.738e-05,2]
[424246964,1780705782000,-607.04300003,9.738e-05,2]
[424246966,1780705782000,-1963.72767052,9.738e-05,2]
[424246962,1780705782000,-500.0,9.737e-05,2]
[424246972,1780705807000,-1246.63613175,9.738e-05,2]
[424246971,1780705807000,-4377.98297635,9.738e-05,2]
[424246969,1780705807000,-150.0,9.737e-05,2]
[424246970,1780705807000,-3789.41844977,9.738e-05,2]
[424246968,1780705807000,-250.0,9.713e-05,2]
[424246967,1780705807000,-188.56452658,9.689e-05,2]
[424246978,1780705818000,233.9137029,0.00010061,7]
[424246977,1780705818000,150.0,0.00010357,7]
[424246979,1780705819000,150.0,0.00010357,7]
[424246985,1780705831000,-15229.32,9.738e-05,2]
[424246986,1780705831000,-188874.06912965,9.738e-05,2]
[424246988,1780705831000,-250.0,9.742e-05,2]
[424246989,1780705831000,-2000.0,9.81e-05,2]
[424246990,1780705831000,-2926.93,9.862e-05,2]
[424246991,1780705831000,-822.46458124,9.864e-05,2]
[424246987,1780705831000,-3548.68,9.738e-05,2]
[424246993,1780705831000,-1000.0,9.899e-05,2]
[424246992,1780705831000,-930.67253124,9.864e-05,2]
[424246984,1780705831000,-770.68,9.498e-05,2]
[424246995,1780705831000,-215.77576141,9.979e-05,2]
[424246997,1780705831000,-448.18,0.00010045,2]
[424246994,1780705831000,-160.0,9.979e-05,2]
[424246998,1780705831000,-943.86,0.00010101,2]
[424247000,1780705831000,-188.56452658,0.0001041,2]
[424246999,1780705831000,-778.51,0.00010318,2]
[424247002,1780705831000,-663.83414893,0.00010461,2]
[424247004,1780705831000,-783.24278636,0.00010464,2]
[424247001,1780705831000,-151.0,0.00010459,2]
[424247003,1780705831000,-133262.89788101,0.00010462,2]
[424247005,1780705831000,-1519.71591833,0.00010464,2]
[424247006,1780705831000,-191.59919878,0.00010464,2]
[424246996,1780705831000,-1086.8720445,0.0001,2]
[424247021,1780705832000,-1000.0,0.00010563,2]
[424247016,1780705832000,-286.405,0.00010563,2]
[424247015,1780705832000,-5164.495,0.00010563,2]
[424247017,1780705832000,-1019.76924147,0.00010563,3]
[424247019,1780705832000,-1000.0,0.00010563,2]
[424247013,1780705832000,-1602.0,0.00010548,2]
[424247007,1780705832000,-1979.52,0.00010511,2]
[424247009,1780705832000,-194.09368115,0.00010511,2]
[424247014,1780705832000,-30046.0,0.00010548,2]
[424247018,1780705832000,-1019.76924146,0.00010563,3]
[424247011,1780705832000,-188.56452658,0.00010511,2]
[424247020,1780705832000,-250.0,0.00010563,2]
[424247025,1780705832000,-1023.66685534,0.00010563,3]
[424247023,1780705832000,-1173.63214269,0.00010563,3]
[424247024,1780705832000,-1173.63214269,0.00010563,3]
[424247038,1780705832000,-40657.97288202,0.00010564,2]
[424247041,1780705832000,-265.84703492,0.00010564,2]
[424247036,1780705832000,-30788.81907285,0.00010564,2]
[424247029,1780705832000,-1023.66685534,0.00010563,3]
[424247031,1780705832000,-22075.14881404,0.00010564,2]
[424247026,1780705832000,-1023.66685534,0.00010563,3]
[424247033,1780705832000,-14852.37437658,0.00010564,2]
[424247022,1780705832000,-1033.42824636,0.00010563,3]
[424247147,1780705838000,-438.20749827,0.00010564,2]
[424247148,1780705838000,-815.29512297,0.00010564,2]
[424247146,1780705838000,-2762.99250173,0.00010554,2]
[424247151,1780705838000,-1500.0,0.000106,3]
[424247149,1780705838000,-2390106.33519835,0.00010564,2]
[424247152,1780705838000,-2100.0,0.000106,3]
[424247153,1780705838000,-194.09368115,0.00010611,2]
[424247154,1780705838000,-975.24,0.00010615,2]
[424247155,1780705838000,-250.0,0.00010658,2]
[424247150,1780705838000,-6815.4019,0.00010564,2]
[424247197,1780705839000,-975.24,0.00011411,2]
[424247200,1780705839000,-337.23758928,0.00011544,2]
[424247198,1780705839000,-10759.20504617,0.00011479,2]
[424247201,1780705839000,-3245.87887117,0.0001166,2]
[424247193,1780705839000,-727.48301722,0.00011192,2]
[424247203,1780705839000,-151.0,0.00011752,2]
[424247194,1780705839000,-10759.20504617,0.000112,2]
[424247204,1780705839000,-156.587,0.00011752,2]
[424247190,1780705839000,-10759.20504617,0.00011099,2]
[424247186,1780705839000,-666.0,0.00011098,2]
[424247185,1780705839000,-666.0,0.00011098,2]
[424247187,1780705839000,-300.0,0.00011098,2]
[424247205,1780705839000,-200.00373781,0.00011752,2]
[424247195,1780705839000,-783.24278636,0.00011203,2]
[424247210,1780705839000,-500.0,0.00011795,2]
[424247202,1780705839000,-975.24,0.00011676,2]
[424247207,1780705839000,-433.0,0.00011782,2]
[424247206,1780705839000,-10759.20504617,0.00011758,2]
[424247208,1780705839000,-1173.6321427,0.00011794,3]
[424247217,1780705839000,-540.0,0.00011795,2]
[424247211,1780705839000,-500.0,0.00011795,2]
[424247209,1780705839000,-500.0,0.00011795,2]
[424247213,1780705839000,-540.0,0.00011795,2]
[424247212,1780705839000,-540.0,0.00011795,2]
[424247183,1780705839000,-300.0,0.00011098,2]
[424247214,1780705839000,-540.0,0.00011795,2]
[424247216,1780705839000,-540.0,0.00011795,2]
[424247215,1780705839000,-500.0,0.00011795,2]
[424247199,1780705839000,-500.0,0.00011534,2]
[424247191,1780705839000,-10759.20504617,0.00011099,2]
[424247170,1780705839000,-6000.0,0.000109,3]
[424247184,1780705839000,-300.0,0.00011098,2]
[424247156,1780705839000,-151.0,0.00010661,2]
[424247159,1780705839000,-150.0,0.00010663,2]
[424247165,1780705839000,-6300.0,0.000108,3]
[424247160,1780705839000,-90367.27569881,0.000107,2]
[424247158,1780705839000,-151.0,0.00010661,2]
[424247162,1780705839000,-4200.0,0.000107,3]
[424247161,1780705839000,-3000.0,0.000107,3]
[424247157,1780705839000,-151.0,0.00010661,2]
[424247163,1780705839000,-255.0,0.0001071,2]
[424247166,1780705839000,-975.24,0.0001088,2]
[424247164,1780705839000,-4500.0,0.000108,3]
[424247167,1780705839000,-151.0,0.00010895,2]
[424247169,1780705839000,-3097.96363043,0.000109,3]
[424247178,1780705839000,-151.21,0.00011017,2]
[424247179,1780705839000,-2000.0,0.00011036,2]
[424247168,1780705839000,-500.0,0.00010895,2]
[424247180,1780705839000,-300.0,0.00011098,2]
[424247171,1780705839000,-3245.87887121,0.000109,2]
[424247172,1780705839000,-8500.0,0.000109,3]
[424247173,1780705839000,-500.0,0.00010958,2]
[424247219,1780705839000,-540.0,0.00011795,2]
[424247175,1780705839000,-150.0,0.00010959,2]
[424247176,1780705839000,-150.0,0.00010959,2]
[424247174,1780705839000,-500.0,0.00010958,2]
[424247177,1780705839000,-3245.87887117,0.00011012,2]
[424247188,1780705839000,-666.0,0.00011098,2]
[424247189,1780705839000,-10759.20504626,0.00011099,2]
[424247181,1780705839000,-666.0,0.00011098,2]
[424247182,1780705839000,-300.0,0.00011098,2]
[424247192,1780705839000,-975.24,0.00011146,2]
[424247218,1780705839000,-500.0,0.00011795,2]
[424247196,1780705839000,-293.63,0.00011233,2]
[424247220,1780705839000,-500.0,0.00011795,2]
[424247254,1780705839000,-2753.28,0.00012055,2]
[424247256,1780705839000,-1020.47,0.00012087,2]
[424247257,1780705839000,-999.99,0.00012087,2]
[424247259,1780705839000,-150.99,0.00012087,2]
[424247263,1780705839000,-29999.99,0.00012087,2]
[424247264,1780705839000,-1548.0,0.00012219,2]
[424247267,1780705839000,-1548.0,0.00012219,2]
[424247261,1780705839000,-1927.85,0.00012087,2]
[424247260,1780705839000,-6612.91,0.00012087,2]
[424247265,1780705839000,-1548.0,0.00012219,2]
[424247266,1780705839000,-1548.0,0.00012219,2]
[424247271,1780705839000,-152.0,0.00012219,2]
[424247269,1780705839000,-1548.0,0.00012219,2]
[424247268,1780705839000,-1548.0,0.00012219,2]
[424247273,1780705839000,-152.0,0.00012219,2]
[424247281,1780705839000,-2000.0,0.00012262,2]
[424247282,1780705839000,-244.73326463,0.00012271,2]
[424247272,1780705839000,-152.0,0.00012219,2]
[424247283,1780705839000,-152.0,0.00012301,7]
[424247275,1780705839000,-151.0,0.00012219,2]
[424247276,1780705839000,-151.0,0.00012219,2]
[424247284,1780705839000,-3245.87887117,0.00012308,2]
[424247274,1780705839000,-152.0,0.00012219,2]
[424247278,1780705839000,-151.0,0.00012219,2]
[424247277,1780705839000,-151.0,0.00012219,2]
[424247279,1780705839000,-151.0,0.00012219,2]
[424247280,1780705839000,-151.0,0.00012219,2]
[424247225,1780705839000,-540.0,0.00011795,2]